Cogmind - Beta 15 @@@ ROGUE MODE // 2025.06.05 @ 22:21:20 Player: Florist Result: Destroyed by S-43 Plague with Heavy Machine Gun Performance ------------- Evolutions (9) 4500 Regions Visited (21) 4200 Robots Destroyed (171) 855 Value Destroyed (4665) 4665 Prototype IDs (39) 780 Alien Tech Used (0) 0 Bonus (12062) 12062 TOTAL SCORE: 27062 Bonus ------- High Alert Combat Kills 42 Follower Combat Kills 119 Aligned with FarCom 300 Met Warlord at Base 500 MAIN.C Attacked Warlord 500 Met Warlord at Research 2000 Invited to Help at Command 2000 Met MAIN.C 5000 Met Warlord at Command 2000 Friendly Fire -399 Cogmind --------- Core Integrity 0/1600 Matter 295/300 Energy 92/100 System Corruption 9% Temperature Cool (0) Movement Core (50) Location -1/Command Parts ------- > --- POWER (2) -------- (None) > --- PROPULSION (10) -- (None) > --- UTILITY (10) ----- (None) > --- WEAPON (3) ------- (None) > --- INVENTORY (5) ---- Improved Melee Analysis Suite Advanced Phase Shifter Light Regenerative Plating Peak State ------------ > --- POWER ------------ Light Antimatter Reactor Particle Reactor > --- PROPULSION ------- Improved VTOL Module Improved VTOL Module Improved VTOL Module Improved VTOL Module Improved VTOL Module Xenon Bombardment Thruster Xenon Bombardment Thruster Cooled Cesium-ion Thruster Cooled Impulse Thruster Improved Q-thruster > --- UTILITY ---------- Advanced Cooling System Gravity Neutralizer Machine Analyzer Advanced Visual Processing Unit Advanced Signal Interpreter Light Regenerative Plating Advanced Hacking Suite Advanced Hacking Suite Improved System Shield Improved System Shield > --- WEAPON ----------- Vortex Catalyst Activator Force Lance > --- INVENTORY -------- Structural Scanner Improved Melee Analysis Suite Advanced Phase Shifter [Rating: 145] Favorites ----------- Power Ion Engine Engine Ion Engine Reactor Light Antimatter Reactor Propulsion Light Treads Treads Light Treads Flight Unit Improved VTOL Module Utility Structural Scanner Device Structural Scanner Storage High-capacity Storage Unit Processor Machine Analyzer Hackware Advanced Hacking Suite Protection Medium Armor Plating Weapon Improved Light Cannon Energy Gun Medium Laser Energy Cannon Heavy Disruptor Cannon Ballistic Gun Enhanced Autogun Ballistic Cannon Improved Light Cannon Launcher Vortex Catalyst Activator Special Weapon Plasma Cutter Impact Weapon Makeshift Hammer Piercing Weapon Force Lance Build | -11 -10 -10 -9 -9 -9 -8 -8 -8 -8 -8 -6 -5 -5 -5 -5 -4 -4 -3 -2 -1 -1 ------- Run | Yrd Mat Min Mat Min Exi Min Mat Sto Rec Scr Fac Fac Upp Upp War Pro Fac Res Res Acc Com Slots Evolved 18 | . . . 2 . . . 2 . . . 4 2 . . . . 2 2 2 2 . Power 1 | . . . . . . . . . . . . . . . . . . . 1 . . Propulsion 8 | . . . 2 . . . . . . . 2 1 . . . . . 1 . 2 . Utility 8 | . . . . . . . 1 . . . 2 1 . . . . 2 1 1 . . Weapon 1 | . . . . . . . 1 . . . . . . . . . . . . . . Parts Attached 105 | 6 5 . 13 . . . 10 13 . . 10 5 . 2 2 . 1 5 20 5 8 Power 9 | 1 . . . . . . 1 . . . 1 1 . . . . . 1 3 . 1 Engine 5 | 1 . . . . . . 1 . . . 1 1 . . . . . . 1 . . Core . | . . . . . . . . . . . . . . . . . . . . . . Reactor 4 | . . . . . . . . . . . . . . . . . . 1 2 . 1 Propulsion 40 | 2 . . 9 . . . 4 7 . . 5 1 . . . . . 1 5 2 4 Treads 21 | 2 . . 9 . . . 3 7 . . . . . . . . . . . . . Leg . | . . . . . . . . . . . . . . . . . . . . . . Wheel . | . . . . . . . . . . . . . . . . . . . . . . Hover . | . . . . . . . . . . . . . . . . . . . . . . Flight 19 | . . . . . . . 1 . . . 5 1 . . . . . 1 5 2 4 Utility 36 | 1 4 . 2 . . . 3 1 . . 3 2 . 2 . . 1 3 11 2 1 Device 11 | . 1 . . . . . 2 . . . . . . . . . . 2 5 1 . Storage 3 | 1 1 . 1 . . . . . . . . . . . . . . . . . . Processor 5 | . . . . . . . . . . . 1 2 . . . . . . 2 . . Hackware 12 | . . . . . . . . . . . 2 . . 2 . . 1 1 4 1 1 Protection 5 | . 2 . 1 . . . 1 1 . . . . . . . . . . . . . Artifact . | . . . . . . . . . . . . . . . . . . . . . . Weapon 20 | 2 1 . 2 . . . 2 5 . . 1 1 . . 2 . . . 1 1 2 Energy Gun 2 | 1 1 . . . . . . . . . . . . . . . . . . . . Energy Cannon 1 | . . . . . . . . . . . . . . . . . . . . 1 . Ballistic Gun 4 | 1 . . . . . . . 3 . . . . . . . . . . . . . Ballistic Cannon 5 | . . . 2 . . . 1 2 . . . . . . . . . . . . . Launcher 3 | . . . . . . . . . . . . . . . 2 . . . . . 1 Special Weapon 1 | . . . . . . . . . . . . 1 . . . . . . . . . Impact Weapon 2 | . . . . . . . 1 . . . 1 . . . . . . . . . . Slashing Weapon . | . . . . . . . . . . . . . . . . . . . . . . Piercing Weapon 2 | . . . . . . . . . . . . . . . . . . . 1 . 1 Special Melee Weapon . | . . . . . . . . . . . . . . . . . . . . . . Unidentified Prototypes 14 | . . . 1 . . . 1 2 . . 2 . . . 1 . . 1 5 . 1 Corrupted Parts 1 | . . . . . . . . . . . . . . . . . . . 1 . . System Corruption 3 | . . . . . . . . . . . . . . . . . . . 3 . . Parts Lost 35 | . 2 . 1 . . . 1 2 . . 2 . 1 . . . . 2 . 1 23 Power 4 | . . . . . . . . . . . 1 . . . . . . . . . 3 Propulsion 14 | . . . . . . . . 2 . . 1 . . . . . . . . 1 10 Utility 11 | . 1 . . . . . 1 . . . . . . . . . . 2 . . 7 Weapon 6 | . 1 . 1 . . . . . . . . . 1 . . . . . . . 3 Highest Loss Streak 22 | . 1 . 1 . . . 1 2 . . 2 . 1 . . . . 2 . 1 22 To Critical Strikes . | . . . . . . . . . . . . . . . . . . . . . . Average Backups 12 | 3 8 12 14 18 19 20 19 19 20 20 5 5 5 5 5 5 4 3 4 3 3 Power . | . 1 1 1 1 1 1 1 1 1 1 . . 1 1 1 1 1 1 . . . Propulsion 2 | 1 3 5 2 4 4 4 4 5 5 5 . 1 1 1 1 1 1 . . . . Utility 5 | . 4 6 6 7 7 8 7 7 8 8 2 2 2 2 2 3 2 2 2 3 3 Weapon 2 | . . . 4 5 6 6 5 5 5 5 1 1 1 1 . . . . . . . Tool/Special . | . . . . . . . . . . . . . . . . . . . . . . Unused Backups 16 | . . . 2 1 . . 1 2 . . 6 . . . . . . . 2 . 2 Power 1 | . . . . . . . . . . . 1 . . . . . . . . . . Propulsion 3 | . . . 2 . . . 1 . . . . . . . . . . . . . . Utility 6 | . . . . . . . . 1 . . 1 . . . . . . . 2 . 2 Weapon 6 | . . . . 1 . . . 1 . . 4 . . . . . . . . . . Tool/Special . | . . . . . . . . . . . . . . . . . . . . . . Average Slot Usage (%) 93 | . 91 100 98 100 100 100 99 97 100 100 82 82 87 82 86 88 84 79 86 90 88 Engine 7 | . 14 14 11 11 11 11 9 9 9 9 5 5 5 5 5 5 5 2 . . . Reactor 1 | . . . . . . . . . . . . . . . . . . 1 7 8 7 Treads 24 | . 28 28 43 44 44 44 36 34 36 36 3 . . . . . . . . . . Flight 11 | . . . . . . . . . . . 32 33 35 35 35 35 31 29 32 37 36 Device 6 | . 4 14 4 . . . 8 9 9 9 6 5 5 5 5 5 5 5 6 11 11 Storage 7 | . 14 14 11 11 11 11 9 9 9 9 . . . . . . . . . . . Processor 3 | . . . . . . . . . . . 5 10 11 11 11 11 10 9 12 12 11 Hackware 4 | . . . . . . . . . . . 11 11 11 11 11 11 15 14 17 16 15 Protection 5 | . 1 . 6 11 11 11 8 9 9 9 6 5 5 5 5 5 5 4 4 . . Energy Gun 2 | . 19 28 . . . . . . . . . . . . . . . . . . . Ballistic Gun 5 | . 8 . . . . . . 10 27 27 1 . . . . . . . . . . Ballistic Cannon 7 | . . . 20 22 22 22 26 16 . . . . . . . . . . . . . Peak Build Rating 145 | 6 8 8 15 15 16 16 24 38 38 38 55 68 68 68 86 86 89 106 138 145 145 Average Rating 46 | 5 7 8 13 15 15 16 21 26 38 38 47 62 67 67 79 86 89 95 115 126 129 On Entrance 50 | . 6 8 8 15 15 16 16 23 38 38 38 54 68 66 68 86 86 89 103 138 121 Naked Turns 18 | . . . . . . . . . . . . . . . . . . . . . 18 Heaviest Build 70 | 14 34 30 60 60 60 60 70 70 67 67 20 20 18 17 37 37 37 43 62 62 54 Greatest Support 82 | 40 40 40 80 80 80 80 80 82 82 82 31 39 39 39 39 39 42 51 61 71 79 Greatest Overweight (x) 1 | . . . . . . . 1 1 . . . . . . . . . . 1 . . Average Overweight (x) . | . . . . . . . . . . . . . . . . . . . . . . Largest Inventory Capacity 20 | 8 15 15 20 20 20 20 20 20 20 20 20 5 5 5 5 5 5 5 5 5 5 Average Capacity 13 | 7 11 15 17 20 20 20 20 20 20 20 6 5 5 5 5 5 5 5 5 5 5 Most Carried 20 | 6 12 12 18 20 20 20 20 20 20 20 20 5 5 5 5 5 4 5 5 5 5 Average Carried 12 | 3 8 12 14 18 19 20 18 19 20 20 5 4 5 5 4 5 4 3 4 4 4 Final Capacity 20 | 8 15 15 20 20 20 20 20 20 20 20 5 5 5 5 5 5 5 5 5 5 5 Final Carried 20 | 6 12 12 18 19 20 20 19 20 20 20 5 5 5 5 5 5 4 5 5 5 3 Class Distribution -------------------- 22% | Hacker-Scout 19% | Mutant 18% | Scavenger-Mutant 13% | Scavenger-Skirmisher 6% | Hacker-Sprinter 5% | Skirmisher 4% | Commander-Tank 4% | Commander-Skirmisher 3% | Hacker-Ninja Dominant Class ---------------- Mutant | -10/Materials Mutant | -10/Mines Scavenger-Mutant | -9/Materials Scavenger-Mutant | -9/Mines Scavenger-Mutant | -9/Exiles Scavenger-Mutant | -8/Mines Scavenger-Skirmisher | -8/Materials Scavenger-Skirmisher | -8/Storage Skirmisher | -8/Recycling Commander-Tank | -8/Scraptown Hacker-Scout | -6/Factory Hacker-Scout | -5/Factory Hacker-Sprinter | -5/Upper Caves Hacker-Sprinter | -5/Upper Caves Hacker-Sprinter | -5/Warlord Hacker-Sprinter | -4/Proximity Caves Hacker-Scout | -4/Factory Hacker-Ninja | -3/Research Hacker-Scout | -2/Research Hacker-Scout | -1/Access Hacker-Scout | -1/Command Resources | -11 -10 -10 -9 -9 -9 -8 -8 -8 -8 -8 -6 -5 -5 -5 -5 -4 -4 -3 -2 -1 -1 ----------- Run | Yrd Mat Min Mat Min Exi Min Mat Sto Rec Scr Fac Fac Upp Upp War Pro Fac Res Res Acc Com Matter Collected 4102 | 284 238 . 572 264 . . 985 642 304 . 130 40 40 20 . 20 . 70 260 30 203 Remotely . | . . . . . . . . . . . . . . . . . . . . . . Salvage Created 5788 | 151 1024 . 640 217 . . 777 687 459 . 200 46 . . . . . 726 545 . 316 Parts 288 | 7 65 . 43 15 . . 43 39 19 . 4 . . . . . . 11 23 . 19 Haulers Intercepted 19 | . 2 . 3 . . . 2 5 . . . . . . . . . 5 2 . . Recyclers Shooed 7 | 1 2 . . . . . 2 2 . . . . . . . . . . . . . Parts Field Recycled . | . . . . . . . . . . . . . . . . . . . . . . Retrieved Matter . | . . . . . . . . . . . . . . . . . . . . . . Parts Self-Destructed 6 | . . . . . . . . . . . . . 6 . . . . . . . . Prevented 4 | . . . . . . . . . . . . . 4 . . . . . . . . Kills | -11 -10 -10 -9 -9 -9 -8 -8 -8 -8 -8 -6 -5 -5 -5 -5 -4 -4 -3 -2 -1 -1 ------- Run | Yrd Mat Min Mat Min Exi Min Mat Sto Rec Scr Fac Fac Upp Upp War Pro Fac Res Res Acc Com Combat Hostiles Destroyed 93 | . 20 . 13 12 . . 17 11 7 . 1 . . . . . . . . . 12 Melee 10 | . . . . . . . . . . . . . . . . . . . . . 10 Guns 32 | . 20 . . . . . . 5 7 . . . . . . . . . . . . Cannons 48 | . . . 13 12 . . 17 6 . . . . . . . . . . . . . AOE 3 | . . . . . . . . . . . 1 . . . . . . . . . 2 Classes Destroyed 18 | 2 7 . 4 . . . . 1 2 . . . . . . . . . . . 2 Worker 11 | . 2 . 3 . . . 2 2 . . . . . . . . . . 2 . . Builder 14 | . 1 . . . . . 3 1 1 . . . . . . . . 2 6 . . Tunneler 3 | 3 . . . . . . . . . . . . . . . . . . . . . Hauler 19 | . 2 . 3 . . . 2 5 . . . . . . . . . 5 2 . . Recycler 9 | 1 2 . 1 . . . 3 . 1 . 1 . . . . . . . . . . Mechanic 5 | . . . 1 . . . . . . . 1 1 . . . . . . 1 . 1 Operator 7 | . 3 . . . . . . 2 . . . . . . . . . 2 . . . Drone 7 | . . . . . . . . . . . . . . . . . . . . . 7 Watcher 16 | . 3 . 3 . . . 2 1 . . 1 . . . . . . 3 3 . . Swarmer 15 | . 9 . . 6 . . . . . . . . . . . . . . . . . Cutter 2 | . . . . . . . . . . . . . . . . . . . . . 2 Grunt 46 | . 11 . 8 6 . . 14 6 1 . . . . . . . . . . . . Brawler 3 | . . . 1 . . . 1 . 1 . . . . . . . . . . . . Duelist 1 | . . . 1 . . . . . . . . . . . . . . . . . . Protector 1 | . . . . . . . . . 1 . . . . . . . . . . . . Sentry 11 | . . . 3 . . . 2 4 2 . . . . . . . . . . . . Hunter 1 | . . . . . . . . 1 . . . . . . . . . . . . . Programmer 5 | . . . . . . . . . 1 . 1 . . . . . . . . . 3 Thug 2 | . . . . . . . . . 1 . . . . . . . . . . . 1 Best Kill Streak 7 | 4 3 . 4 3 . . 4 7 2 . 1 1 . . . . . 3 4 . 7 Combat Bots Only 7 | . 3 . 3 3 . . 3 5 2 . 1 . . . . . . . . . 7 Max Kills in Single Turn 2 | 1 2 . 2 1 . . 2 2 1 . 1 1 . . . . . 1 1 . 2 Gunslinging . | . . . . . . . . . . . . . . . . . . . . . . Exploded 1 | . . . . . . . . . . . 1 . . . . . . . . . 1 Melee 1 | . . . . . . . . . . . . . . . . . . . . . 1 Uniques/NPCs Destroyed . | . . . . . . . . . . . . . . . . . . . . . . Combat | -11 -10 -10 -9 -9 -9 -8 -8 -8 -8 -8 -6 -5 -5 -5 -5 -4 -4 -3 -2 -1 -1 -------- Run | Yrd Mat Min Mat Min Exi Min Mat Sto Rec Scr Fac Fac Upp Upp War Pro Fac Res Res Acc Com Hostile Shots Fired 506 | . 78 . 43 34 . . 53 52 6 . 6 4 12 10 . . 8 . 13 . 187 Missed 188 | . 17 . 12 10 . . 15 18 3 . 3 4 4 2 . . 3 . 8 . 89 Hits 318 | . 61 . 31 24 . . 38 34 3 . 3 . 8 8 . . 5 . 5 . 98 Melee 13 | . . . 5 . . . 1 . 1 . . . . . . . . . . . 6 Projectile 305 | . 61 . 26 24 . . 37 34 2 . 3 . 8 8 . . 5 . 5 . 92 AOE 4 | . . . . . . . . . . . . . . . . . . . . . 4 Critical Strikes 12 | . 1 . 1 1 . . 2 . . . . . . . . . . . . . 7 Damage Taken 6450 | . 634 . 475 228 . . 606 534 69 . 430 . 128 134 . . 89 128 88 112 2795 Core 1991 | . 141 . 72 . . . 30 50 . . . . . 35 . . 48 . . 24 1591 Absorbed by Shields . | . . . . . . . . . . . . . . . . . . . . . . Regen/Repaired (Parts) 776 | . . . 200 . . . . . . . 54 258 9 35 68 . 1 67 81 . 3 Core Remaining (%) 89 | 100 . 43 . . . 82 . . . 85 100 . . . . 96 95 100 100 . . Volleys Fired 316 | 8 79 . 58 25 . . 74 44 20 . . . . . . . . . . 2 6 Largest 3 | 2 2 . 2 2 . . 3 3 3 . . . . . . . . . . 1 1 Hottest 110 | 70 100 . 66 66 . . 99 99 75 . . . . . . . . . . 110 80 Shots Fired 747 | 16 155 . 114 50 . . 220 124 60 . . . . . . . . . . 2 6 Gun 276 | 16 155 . . . . . . 45 60 . . . . . . . . . . . . Cannon 464 | . . . 114 50 . . 220 79 . . . . . . . . . . . 1 . Launcher 7 | . . . . . . . . . . . . . . . . . . . . 1 6 Special . | . . . . . . . . . . . . . . . . . . . . . . Kinetic 642 | 8 66 . 114 50 . . 220 124 60 . . . . . . . . . . . . Thermal 97 | 8 89 . . . . . . . . . . . . . . . . . . . . Explosive . | . . . . . . . . . . . . . . . . . . . . . . Electromagnetic 6 | . . . . . . . . . . . . . . . . . . . . 1 5 Entropic 2 | . . . . . . . . . . . . . . . . . . . . 1 1 Robot Hit Streak 28 | 4 18 . 10 7 . . 15 27 28 . . . . . . . . . . . 4 Robot Miss Streak 5 | 1 4 . 4 3 . . 4 2 3 . . . . . . . . . . . 5 Penetration Max . | . . . . . . . . . . . . . . . . . . . . . . Secondary Targets 3 | . 3 . . . . . . . . . . . . . . . . . . . . Max Gunslinging Chain 1 | . 1 . . . . . . . . . . . . . . . . . . . . Shots Hit Robots 510 | 10 101 . 69 26 . . 133 76 39 . 6 1 . . . . . 14 15 1 19 Core Hits 232 | 5 50 . 27 13 . . 46 34 13 . 2 . . . . . . 3 8 . 31 Critical Kills . | . . . . . . . . . . . . . . . . . . . . . . Critical Parts Destroyed 5 | 1 1 . . . . . . . . . . 1 . . . . . 1 1 . . Critical Strikes 31 | 1 9 . 3 2 . . 5 3 . . . 1 . . . . . 1 4 . 2 Burn 8 | . 8 . . . . . . . . . . . . . . . . . . . . Destroy 2 | 1 1 . . . . . . . . . . . . . . . . . . . . Blast 13 | . . . 3 2 . . 5 3 . . . . . . . . . . . . . Smash 3 | . . . . . . . . . . . . 1 . . . . . 1 1 . . Impale 5 | . . . . . . . . . . . . . . . . . . . 3 . 2 Melee Attacks 185 | . . . . . . . 3 1 . . 14 14 4 1 . . 3 44 35 21 45 Impact 90 | . . . . . . . 3 1 . . 14 14 4 1 . . 3 44 6 . . Slashing . | . . . . . . . . . . . . . . . . . . . . . . Piercing 95 | . . . . . . . . . . . . . . . . . . . 29 21 45 Sneak Attacks 32 | . . . . . . . . . . . 2 1 . . . . . 9 11 . 9 Combat Hostiles 8 | . . . . . . . . . . . . . . . . . . . . . 8 Follow-up Attacks . | . . . . . . . . . . . . . . . . . . . . . . Damage Inflicted 14118 | 118 1305 . 1616 572 . . 2854 1538 790 . 465 114 . . . . . 1301 1508 53 1884 Guns 2804 | 118 1305 . . . . . . 591 790 . . . . . . . . . . . . Cannons 5888 | . . . 1515 572 . . 2854 947 . . . . . . . . . . . . . Explosions 953 | . . . 101 . . . . . . . 111 . . . . . . . . . 741 Melee 4473 | . . . . . . . . . . . 354 114 . . . . . 1301 1508 53 1143 Ramming . | . . . . . . . . . . . . . . . . . . . . . . Kinetic 7862 | 32 561 . 1515 572 . . 2854 1538 790 . . . . . . . . . . . . Thermal 1136 | 86 744 . . . . . . . . . 111 . . . . . . . . . 195 Explosive 194 | . . . 101 . . . . . . . . . . . . . . . . . 93 Electromagnetic 319 | . . . . . . . . . . . . . . . . . . . . . 319 Impact 2245 | . . . . . . . . . . . 354 114 . . . . . 1301 476 . . Slashing . | . . . . . . . . . . . . . . . . . . . . . . Piercing 2228 | . . . . . . . . . . . . . . . . . . . 1032 53 1143 Entropic 134 | . . . . . . . . . . . . . . . . . . . . . 134 Highest Corruption 9 | . . . . . . . . . . . 1 . . . . . . 1 3 . 9 Average Corruption 1 | . . . . . . . . . . . 1 . . . . . . 1 3 . 1 Corruption Purged . | . . . . . . . . . . . . . . . . . . . . . . Corruption Blocked . | . . . . . . . . . . . . . . . . . . . . . . Effects 11 | . . . . . . . . . . . 1 . . . . . . 1 1 . 8 Message Errors 6 | . . . . . . . . . . . 1 . . . . . . 1 . . 4 Matter Fused 2 | . . . . . . . . . . . . . . . . . . . . . 2 Energy Discharges 1 | . . . . . . . . . . . . . . . . . . . . . 1 Data Loss (minor) 1 | . . . . . . . . . . . . . . . . . . . 1 . . Data Loss (major) 1 | . . . . . . . . . . . . . . . . . . . . . 1 Overload Shots . | . . . . . . . . . . . . . . . . . . . . . . Overflow Damage 1802 | . . . . 1 . . 37 3 . . 247 114 . . . . . 603 543 24 230 Projectiles 41 | . . . . 1 . . 37 3 . . . . . . . . . . . . . Explosions 265 | . . . . . . . . . . . 194 . . . . . . . . 24 47 Melee 1496 | . . . . . . . . . . . 53 114 . . . . . 603 543 . 183 Knockbacks 92 | . . . 15 4 . . 46 18 . . 2 1 . . . . . 5 1 . . Impact 9 | . . . . . . . . . . . 2 1 . . . . . 5 1 . . Kinetic 71 | . . . 13 4 . . 40 14 . . . . . . . . . . . . . Secondary 12 | . . . 2 . . . 6 4 . . . . . . . . . . . . . Self-Inflicted Damage 565 | . . . . . . . . . . . 385 . . . . . . . . 112 68 Shots 12 | . . . . . . . . . . . 5 . . . . . . . . 1 6 Rammed . | . . . . . . . . . . . . . . . . . . . . . . Targets Rammed . | . . . . . . . . . . . . . . . . . . . . . . Kicked . | . . . . . . . . . . . . . . . . . . . . . . Crushed . | . . . . . . . . . . . . . . . . . . . . . . Highest Temperature 444 | 72 198 . 54 84 . . 321 371 204 . 90 112 196 133 170 106 85 313 295 144 444 Average Temperature 65 | 37 44 . 14 20 . . 84 94 60 . 21 36 75 53 55 45 28 80 76 48 99 Received Heat Transfer 1320 | . 255 . 132 72 . . 369 243 18 . . . . 30 . . . . 9 . 192 Effects 14 | . . . . . . . 1 2 . . . . . . . . . 4 . . 7 Shutdowns 2 | . . . . . . . . . . . . . . . . . . . . . 2 Energy Bleed 1 | . . . . . . . . . . . . . . . . . . 1 . . . Interference 11 | . . . . . . . 1 2 . . . . . . . . . 3 . . 5 Siege Activations . | . . . . . . . . . . . . . . . . . . . . . . Martial Activations . | . . . . . . . . . . . . . . . . . . . . . . Shielding Activations . | . . . . . . . . . . . . . . . . . . . . . . Robots Disrupted . | . . . . . . . . . . . . . . . . . . . . . . Combat Hostiles . | . . . . . . . . . . . . . . . . . . . . . . Robots Corrupted 11 | . . . . . . . . . . . 1 1 . . . . . 8 1 . . Combat Hostiles . | . . . . . . . . . . . . . . . . . . . . . . Parts Fried 18 | . . . . . . . . . . . 2 . . . . . . 8 8 . . Impact Corruptions 35 | . . . . . . . . . . . 2 4 . . . . . 22 7 . . Robots Melted . | . . . . . . . . . . . . . . . . . . . . . . Combat Hostiles . | . . . . . . . . . . . . . . . . . . . . . . Parts Melted 2 | . 2 . . . . . . . . . . . . . . . . . . . . Heat Transferred 3171 | 259 2812 . . . . . . . . . 50 . . . . . . . . . 50 Parts Sabotaged 3 | . . . . . . . . . . . . . . . . . . . . . 3 Parts Stolen . | . . . . . . . . . . . . . . . . . . . . . . Parts Stripped . | . . . . . . . . . . . . . . . . . . . . . . Power Chain Reactions 1 | . . . . . . . . . . . . . . . . . . . . . 1 Alert | -11 -10 -10 -9 -9 -9 -8 -8 -8 -8 -8 -6 -5 -5 -5 -5 -4 -4 -3 -2 -1 -1 ------- Run | Yrd Mat Min Mat Min Exi Min Mat Sto Rec Scr Fac Fac Upp Upp War Pro Fac Res Res Acc Com Maximum Alert Level 5 | . . . 1 . . . 1 . . . . . . . . . . . 1 . 5 Low Security (%) 93 | 100 100 100 86 100 . 100 92 100 100 . 100 100 . . . . 100 100 84 100 40 Level 1 4 | . . . 13 . . . 7 . . . . . . . . . . . 15 . 30 Level 2 . | . . . . . . . . . . . . . . . . . . . . . . Level 3 . | . . . . . . . . . . . . . . . . . . . . . . Level 4 . | . . . . . . . . . . . . . . . . . . . . . 3 Level 5 1 | . . . . . . . . . . . . . . . . . . . . . 24 High Security . | . . . . . . . . . . . . . . . . . . . . . . Max Security . | . . . . . . . . . . . . . . . . . . . . . . Peak Influence 3210 | 15 148 16 241 79 . . 239 151 53 . 156 131 . . . . 28 28 255 47 3210 Initial 94 | . . 16 5 79 . . . 94 27 . . 39 . . . . . 9 11 44 . Average 91 | 2 70 16 74 21 . . 75 77 8 . 45 58 . . . . 14 8 105 9 800 Influence Increases 8315 | 20 619 . 502 272 . . 540 382 212 . 243 230 60 165 . . 48 252 538 144 4088 Destroy 0b10 Robot/C 1820 | . 400 . 260 240 . . 340 220 160 . 40 . . . . . . . . . 160 Destroy 0b10 Robot/NC 460 | 20 65 . 55 . . . 60 55 15 . 15 5 . . . . . 55 70 . 45 Destroy Leader 400 | . 90 . 82 30 . . 58 72 . . 22 . . . . . . 14 10 . 22 Allied During Kill 38 | . . . . . . . . . 14 . 6 . . . . . . . . . 18 Successful Hack 259 | . 19 . 5 . . . 4 16 7 . . 38 . . . . 44 60 44 18 4 Disable Machine 270 | . 15 . 45 . . . 30 15 15 . 90 15 . . . . . . . 15 30 Anti-Garrison Action 50 | . . . . . . . . . . . . . . . . . . . . . 50 Destroy Structure 623 | . . . 40 2 . . 18 4 1 . 55 22 . . . . 4 48 144 81 204 Partial Spotted 300 | . . . . . . . . . . . . . . . . . . 15 45 30 210 Lose Combat Pursuer 4095 | . 30 . 15 . . . 30 . . . 15 150 60 165 . . . 60 225 . 3345 Influence Decreases 5105 | 20 577 26 313 456 21 . 315 537 282 . 162 227 112 52 145 . 30 249 484 219 878 Entered New Map 634 | . . 26 11 126 21 . . 131 43 . . 42 32 7 145 . . 9 10 31 . Time Decay 3721 | 20 557 . 292 330 . . 305 386 219 . 142 185 70 45 . . 30 220 434 178 308 Lost Part 350 | . 20 . 10 . . . 10 20 . . 20 . 10 . . . . 20 . 10 230 Lost Ally 400 | . . . . . . . . . 20 . . . . . . . . . 40 . 340 Squads Dispatched 43 | . 4 . 1 . . . 3 3 . . 1 4 . . . . 2 6 2 4 13 Investigation 13 | . 1 . 1 . . . 1 . . . . 3 . . . . 1 3 2 . 1 Extermination 10 | . . . . . . . . . . . 1 1 . . . . . 2 . 2 4 Reinforcement 17 | . 3 . . . . . 2 1 . . . . . . . . 1 1 . 2 7 Assault 3 | . . . . . . . . 2 . . . . . . . . . . . . 1 Garrison . | . . . . . . . . . . . . . . . . . . . . . . Intercept . | . . . . . . . . . . . . . . . . . . . . . . Searches Triggered . | . . . . . . . . . . . . . . . . . . . . . . Construction Impeded 2 | . . . . . . . 1 . . . . . . . . . . 1 . . . Haulers Reinforced . | . . . . . . . . . . . . . . . . . . . . . . Active Scanning Responses . | . . . . . . . . . . . . . . . . . . . . . . Cargo Convoy Interrupts . | . . . . . . . . . . . . . . . . . . . . . . Stealth | -11 -10 -10 -9 -9 -9 -8 -8 -8 -8 -8 -6 -5 -5 -5 -5 -4 -4 -3 -2 -1 -1 --------- Run | Yrd Mat Min Mat Min Exi Min Mat Sto Rec Scr Fac Fac Upp Upp War Pro Fac Res Res Acc Com Distress Signals 27 | . . . 2 . . . 3 1 . . 3 . . . . . . 2 9 . 7 Communications Jammed . | . . . . . . . . . . . . . . . . . . . . . . Distress Signals . | . . . . . . . . . . . . . . . . . . . . . . Times Spotted 554 | . 32 . 21 13 . . 30 16 8 . 2 8 13 10 . . 3 7 25 4 362 Peak Tracking Total 171 | . 3 . 3 3 . . 5 4 2 . 3 5 13 11 . . 2 3 11 3 171 Tactical Retreats 40 | . 1 . 1 . . . 2 . . . 1 3 2 2 . . . 4 8 . 16 Traps | -11 -10 -10 -9 -9 -9 -8 -8 -8 -8 -8 -6 -5 -5 -5 -5 -4 -4 -3 -2 -1 -1 ------- Run | Yrd Mat Min Mat Min Exi Min Mat Sto Rec Scr Fac Fac Upp Upp War Pro Fac Res Res Acc Com Traps Triggered 4 | . . . . . . . 1 . . . . 1 . . . . . 2 . . . Indirectly . | . . . . . . . . . . . . . . . . . . . . . . Trap Hack Attempts . | . . . . . . . . . . . . . . . . . . . . . . Triggered . | . . . . . . . . . . . . . . . . . . . . . . Disarmed 6 | . 6 . . . . . . . . . . . . . . . . . . . . Reprogrammed . | . . . . . . . . . . . . . . . . . . . . . . Reused . | . . . . . . . . . . . . . . . . . . . . . . Traps Extracted . | . . . . . . . . . . . . . . . . . . . . . . Installed . | . . . . . . . . . . . . . . . . . . . . . . Triggered . | . . . . . . . . . . . . . . . . . . . . . . Machines | -11 -10 -10 -9 -9 -9 -8 -8 -8 -8 -8 -6 -5 -5 -5 -5 -4 -4 -3 -2 -1 -1 ---------- Run | Yrd Mat Min Mat Min Exi Min Mat Sto Rec Scr Fac Fac Upp Upp War Pro Fac Res Res Acc Com Machines Disabled 20 | . 1 . 3 . . . 2 1 1 . 6 1 . . . . . . . 1 4 Max in Single Turn 6 | . 1 . 1 . . . 1 1 1 . 6 1 . . . . . . . 1 2 Garrison Access 9 | . . . . . . . . 1 . . . 1 . . . . . 3 3 1 . Phase Generator 1 | . . . . . . . . . . . . . . . . . . . . . 1 Machines Repaired . | . . . . . . . . . . . . . . . . . . . . . . Machines Dismantled . | . . . . . . . . . . . . . . . . . . . . . . Machines Sabotaged . | . . . . . . . . . . . . . . . . . . . . . . Overloaded Fab Kills . | . . . . . . . . . . . . . . . . . . . . . . Hacking | -11 -10 -10 -9 -9 -9 -8 -8 -8 -8 -8 -6 -5 -5 -5 -5 -4 -4 -3 -2 -1 -1 --------- Run | Yrd Mat Min Mat Min Exi Min Mat Sto Rec Scr Fac Fac Upp Upp War Pro Fac Res Res Acc Com Machines Accessed 74 | . 5 . 5 . 1 . 2 6 11 . 3 9 . 1 6 . 2 12 4 5 2 Terminals 38 | . 4 . 3 . . . 1 5 3 . 2 6 . . . . 2 6 1 3 2 Fabricators 6 | . . . . . . . . . . . . . . . . . . 3 2 1 . Repair Stations 3 | . . . 1 . . . . . . . 1 1 . . . . . . . . . Recycling Units 10 | . 1 . 1 . . . . . 7 . . 1 . . . . . . . . . Scanalyzers 1 | . . . . . . . 1 . . . . . . . . . . . . . . Garrison Access 7 | . . . . . . . . 1 . . . 1 . . . . . 3 1 1 . Total Hacks 172 | . 11 . 14 . 1 . 6 11 21 . 6 25 . 1 10 . 11 27 12 8 8 Successful 107 | . 5 . 8 . 1 . 5 8 9 . 3 16 . 1 10 . 8 18 7 5 3 Failed 65 | . 6 . 6 . . . 1 3 12 . 3 9 . . . . 3 9 5 3 5 Catastrophic 15 | . 4 . 2 . . . . . 5 . . 1 . . . . . 2 1 . . Database Lockouts . | . . . . . . . . . . . . . . . . . . . . . . Manual 75 | . 7 . 5 . 1 . . 10 4 . 4 17 . . . . 7 12 5 1 2 Terminals 106 | . 9 . 8 . . . 3 10 7 . 4 19 . . . . 11 17 4 6 8 Fabricators 11 | . . . . . . . . . . . . . . . . . . 5 5 1 . Repair Stations 10 | . . . 5 . . . . . . . 2 3 . . . . . . . . . Recycling Units 18 | . 2 . 1 . . . . . 13 . . 2 . . . . . . . . . Scanalyzers 3 | . . . . . . . 3 . . . . . . . . . . . . . . Garrison Access 11 | . . . . . . . . 1 . . . 1 . . . . . 5 3 1 . Terminal Hacks 54 | . 4 . 3 . 1 . 2 4 3 . . 6 . 1 10 . 5 7 2 3 3 Record 14 | . . . . . . . . . 1 . . 1 . . 8 . 1 2 . . 1 Prototype ID Bank 1 | . . . 1 . . . . . . . . . . . . . . . . . . Open Door 9 | . . . . . . . . 2 . . . . . 1 2 . . . . 3 1 Level Access Points 4 | . . . . . . . . . . . . 1 . . . . 1 1 1 . . Branch Access Points 2 | . . . . . . . . . 1 . . 1 . . . . . . . . . Terminal Index 4 | . . . 1 . . . . 1 . . . 1 . . . . 1 . . . . Alert Level 3 | . . . . . . . . . . . . . . . . . . 1 1 . 1 Locate Traps 5 | . 1 . . . . . 1 1 . . . . . . . . 1 1 . . . Disarm Traps 1 | . 1 . . . . . . . . . . . . . . . . . . . . Maintenance Status 2 | . . . . . . . . . . . . 1 . . . . . 1 . . . Hauler Manifests 3 | . 1 . 1 . . . 1 . . . . . . . . . . . . . . Registered Prototypes 1 | . 1 . . . . . . . . . . . . . . . . . . . . Zone Layout 4 | . . . . . . . . . 1 . . 1 . . . . 1 1 . . . Proto ID Catalog 1 | . . . . . 1 . . . . . . . . . . . . . . . . Fabricator Hacks 3 | . . . . . . . . . . . . . . . . . . 1 2 . . Network Status 1 | . . . . . . . . . . . . . . . . . . 1 . . . Load Schematic 1 | . . . . . . . . . . . . . . . . . . . 1 . . Build 1 | . . . . . . . . . . . . . . . . . . . 1 . . Repair Station Hacks 7 | . . . 4 . . . . . . . 1 2 . . . . . . . . . Scan Component 4 | . . . 2 . . . . . . . 1 1 . . . . . . . . . Repair 3 | . . . 2 . . . . . . . . 1 . . . . . . . . . Recycling Unit Hacks 9 | . 1 . 1 . . . . . 6 . . 1 . . . . . . . . . Retrieve Components 9 | . 1 . 1 . . . . . 6 . . 1 . . . . . . . . . Scanalyzer 3 | . . . . . . . 3 . . . . . . . . . . . . . . Insert Component 1 | . . . . . . . 1 . . . . . . . . . . . . . . Analyze 2 | . . . . . . . 2 . . . . . . . . . . . . . . Garrison Access Hacks 7 | . . . . . . . . 1 . . . 1 . . . . . 3 1 1 . Seal Access 7 | . . . . . . . . 1 . . . 1 . . . . . 3 1 1 . Unauthorized Hacks 24 | . . . . . . . . 3 . . 2 6 . . . . 3 7 2 1 . Terminals 19 | . . . . . . . . 3 . . 2 6 . . . . 3 5 . . . Assimilate 1 | . . . . . . . . . . . . . . . . . . 1 . . . Botnet 16 | . . . . . . . . 3 . . 2 5 . . . . 2 4 . . . Operators 2 | . . . . . . . . . . . . 1 . . . . 1 . . . . Fabricators 5 | . . . . . . . . . . . . . . . . . . 2 2 1 . Fabnet 5 | . . . . . . . . . . . . . . . . . . 2 2 1 . Repair Stations . | . . . . . . . . . . . . . . . . . . . . . . Recycling Units . | . . . . . . . . . . . . . . . . . . . . . . Scanalyzers . | . . . . . . . . . . . . . . . . . . . . . . Garrison Access . | . . . . . . . . . . . . . . . . . . . . . . Data Cores Recovered 2 | . . . . . . . . 1 . . . . . . . . . 1 . . . Used 1 | . . . . . . . . 1 . . . . . . . . . . . . . Hacking Detections 43 | . 3 . 3 . . . 1 4 5 . 3 7 . . . . 2 10 4 . 1 Full Trace Events 11 | . 1 . 1 . . . . . 1 . . 2 . . . . 1 3 2 . . Feedback Events . | . . . . . . . . . . . . . . . . . . . . . . Feedback Blocked . | . . . . . . . . . . . . . . . . . . . . . . Robot Schematics Acquired . | . . . . . . . . . . . . . . . . . . . . . . Robots Built . | . . . . . . . . . . . . . . . . . . . . . . Authchips . | . . . . . . . . . . . . . . . . . . . . . . Time . | . . . . . . . . . . . . . . . . . . . . . . Total Robot Build Rating . | . . . . . . . . . . . . . . . . . . . . . . Part Schematics Acquired 1 | . . . . . . . 1 . . . . . . . . . . . . . . Parts Built 1 | . . . . . . . . . . . . . . . . . . . 1 . . Authchips . | . . . . . . . . . . . . . . . . . . . . . . Time 58 | . . . . . . . . . . . . . . . . . . . 58 . . Total Part Build Rating 3 | . . . . . . . . . . . . . . . . . . . 3 . . Parts Repaired 3 | . . . 2 . . . . . . . . 1 . . . . . . . . . Time 108 | . . . 64 . . . . . . . . 44 . . . . . . . . . Parts Recycled . | . . . . . . . . . . . . . . . . . . . . . . Recycled Matter . | . . . . . . . . . . . . . . . . . . . . . . Retrieved Matter . | . . . . . . . . . . . . . . . . . . . . . . Retrieved Components 16 | . 3 . 3 . . . . . 10 . . . . . . . . . . . . Parts Scanalyzed 1 | . . . . . . . 1 . . . . . . . . . . . . . . Part Schematics Acquired 1 | . . . . . . . 1 . . . . . . . . . . . . . . Parts Damaged . | . . . . . . . . . . . . . . . . . . . . . . Bothacking | -11 -10 -10 -9 -9 -9 -8 -8 -8 -8 -8 -6 -5 -5 -5 -5 -4 -4 -3 -2 -1 -1 ------------ Run | Yrd Mat Min Mat Min Exi Min Mat Sto Rec Scr Fac Fac Upp Upp War Pro Fac Res Res Acc Com Used RIF Installer . | . . . . . . . . . . . . . . . . . . . . . . Robots Hacked 25 | . . . . . . . . . . . . . . . . . . . 4 . 21 Non-combat . | . . . . . . . . . . . . . . . . . . . . . . Combat 25 | . . . . . . . . . . . . . . . . . . . 4 . 21 Robot Hacks Applied . | . . . . . . . . . . . . . . . . . . . . . . Relay Couplers Released 2 | . . . . . . . . . . . . . . . . . . . 2 . . Machine Destruction 2 | . . . . . . . . . . . . . . . . . . . 2 . . Fabnet Peak Effective % 4 | . . . . . . . . . . . . . . . . . . . 3 4 4 Autooverrided 25 | . . . . . . . . . . . . . . . . . . . 4 . 21 Robots Rewired 12 | . . . . . . . . . 12 . . . . . . . . . . . . Allies Hacked . | . . . . . . . . . . . . . . . . . . . . . . Hacks Repelled . | . . . . . . . . . . . . . . . . . . . . . . Allies | -11 -10 -10 -9 -9 -9 -8 -8 -8 -8 -8 -6 -5 -5 -5 -5 -4 -4 -3 -2 -1 -1 -------- Run | Yrd Mat Min Mat Min Exi Min Mat Sto Rec Scr Fac Fac Upp Upp War Pro Fac Res Res Acc Com Total Allies 40 | . . . . . . . . 2 12 . . . . . . . . 1 4 . 21 Largest Group 12 | . . . . . . . . 2 12 12 12 . . . . . . . 1 . 7 Highest-Rated Group 409 | . . . . . . . . 62 201 201 201 . . . . . . . 67 . 409 Highest-Rated Ally 89 | . . . . . . . . 31 31 27 27 . . . . . . . 67 . 89 Total Orders 9 | . . . . . . . . . 2 . 7 . . . . . . . . . . STAY 1 | . . . . . . . . . 1 . . . . . . . . . . . . ROAM 5 | . . . . . . . . . . . 5 . . . . . . . . . . FOLLOW 3 | . . . . . . . . . 1 . 2 . . . . . . . . . . Ally Attacks 74 | . . . . . . . . . 10 . 23 . . . . . . . 11 . 30 Total Damage 2077 | . . . . . . . . . 173 . 282 . . . . . . . 502 . 1120 Kills 7 | . . . . . . . . . 2 . 1 . . . . . . . . . 4 Allies Corrupted . | . . . . . . . . . . . . . . . . . . . . . . Allies Melted 1 | . . . . . . . . . . . . . . . . . . . 1 . . Intel | -11 -10 -10 -9 -9 -9 -8 -8 -8 -8 -8 -6 -5 -5 -5 -5 -4 -4 -3 -2 -1 -1 ------- Run | Yrd Mat Min Mat Min Exi Min Mat Sto Rec Scr Fac Fac Upp Upp War Pro Fac Res Res Acc Com Active Infowar (turns) 8978 | . . . . . . . 1230 910 1291 681 525 397 154 110 286 74 68 846 1063 670 673 Optics 2219 | . . . . . . . . . . . . . . . . . . . 933 670 616 Structural 7581 | . . . . . . . 1229 910 1291 681 493 397 154 110 286 74 68 623 . 665 600 Seismic 1 | . . . . . . . 1 . . . . . . . . . . . . . . Machine Analysis 4819 | . . . . . . . . . . . 491 397 154 110 286 74 68 846 1063 670 660 Cloaking 2 | . . . . . . . . . . . . . . . . . . 2 . . . Robot Analysis Total . | . . . . . . . . . . . . . . . . . . . . . . Derelict Logs Recovered 5 | . . . . 1 . . . . . . . . 2 1 . 1 . . . . . Drone Launches . | . . . . . . . . . . . . . . . . . . . . . . Drone Recoveries . | . . . . . . . . . . . . . . . . . . . . . . Exploration | -11 -10 -10 -9 -9 -9 -8 -8 -8 -8 -8 -6 -5 -5 -5 -5 -4 -4 -3 -2 -1 -1 ------------- Run | Yrd Mat Min Mat Min Exi Min Mat Sto Rec Scr Fac Fac Upp Upp War Pro Fac Res Res Acc Com Turns Passed 14451 | 151 2165 15 1176 1481 337 125 1233 910 1291 681 525 397 154 110 286 74 68 846 1063 670 693 Spaces Moved 15315 | 74 1176 9 525 694 211 75 448 412 651 410 691 976 434 378 829 263 195 1531 2748 716 1869 Core 51 | 5 . . . . . . . . . . . . . . . . . . . . 46 Treads 4680 | 69 1176 9 525 694 211 75 448 412 651 410 . . . . . . . . . . . Legs . | . . . . . . . . . . . . . . . . . . . . . . Wheels . | . . . . . . . . . . . . . . . . . . . . . . Hover . | . . . . . . . . . . . . . . . . . . . . . . Flight 10584 | . . . . . . . . . . . 691 976 434 378 829 263 195 1531 2748 716 1823 Fastest Speed 6 | 50 160 160 160 160 160 160 160 160 163 163 20 20 20 20 20 20 17 18 11 10 6 Average Speed 61 | 152 160 160 160 160 160 160 160 166 163 163 31 20 20 20 20 20 19 19 17 11 11 Slowest Speed 240 | 160 160 160 160 160 160 160 240 240 163 163 43 23 20 20 20 20 20 20 84 12 50 Overloaded Moves 102 | . . . . . . . . . . . . . . . . . 10 . 11 . 81 Propulsion Burnouts . | . . . . . . . . . . . . . . . . . . . . . . Robots Hopped 20 | . . . . . . . . . . . . . . 1 . . 2 . 8 2 7 Potential Cave-ins 11 | . . . . . . . . . . . . . . . . . . . 3 8 . Cave-ins Triggered . | . . . . . . . . . . . . . . . . . . . . . . Exploration Rate (%) 47 | 4 99 5 44 98 62 31 24 63 95 47 12 26 63 64 90 56 5 33 51 16 56 Regions Visited 21 Branch Regions 12 Pre-discovered Areas 3 | . . . . . . . . . . . . . 1 1 1 . . . . . . Known Exits Taken 9 | . . . . . . . . . . . . 1 1 1 1 1 1 1 1 1 . Unknown Exits Taken 12 | 1 1 1 1 1 1 1 1 1 1 1 1 . . . . . . . . . . Scrap Searched 11 | . . . . 2 . . . . . 1 . . 1 4 . 3 . . . . . Spaces Dug 163 | . . . . . . . 3 1 . . 4 11 1 1 . . 2 24 14 80 22 Terrain Destroyed 380 | . . . 69 3 . . 10 2 . . 69 11 1 1 . . 2 24 14 80 94 Melee 100 | . . . . . . . 3 1 . . 4 11 1 1 . . 2 24 14 17 22 Projectile 14 | . . . 3 3 . . 7 1 . . . . . . . . . . . . . AOE 266 | . . . 66 . . . . . . . 65 . . . . . . . . 63 72 Terrain Rammed . | . . . . . . . . . . . . . . . . . . . . . . Walls Destroyed . | . . . . . . . . . . . . . . . . . . . . . . Machines Disabled . | . . . . . . . . . . . . . . . . . . . . . . Actions | -11 -10 -10 -9 -9 -9 -8 -8 -8 -8 -8 -6 -5 -5 -5 -5 -4 -4 -3 -2 -1 -1 --------- Run | Yrd Mat Min Mat Min Exi Min Mat Sto Rec Scr Fac Fac Upp Upp War Pro Fac Res Res Acc Com Total 19404 | 93 1304 10 750 1015 211 80 794 563 860 423 988 1155 496 408 948 283 218 2039 3266 1257 2243 Wait 3231 | . 36 2 122 294 . 6 239 71 80 14 248 156 59 29 116 21 22 455 439 512 310 Move 15258 | 73 1175 8 524 693 210 74 447 411 650 409 690 975 433 375 828 262 190 1530 2734 711 1856 Hop 16 | . . . . . . . . . . . . . . 1 . . 2 . 5 2 6 Pick Up 50 | 6 7 . 12 2 1 . 5 4 . . 3 1 . . 1 . . 2 6 . . Fast Attach 66 | 6 4 . 7 . . . 3 7 . . 4 4 . . 1 . . 3 17 1 9 Attach 31 | . 1 . 3 . . . 3 . . . 11 1 . . 1 . 1 2 4 3 1 Detach 7 | . . . 2 . . . 1 . . . . . . . . . . 1 1 2 . Swap 43 | . . . 8 . . . 10 10 . . . 2 . 2 . . . 1 5 2 3 Drop 92 | . 2 . 14 1 . . 9 15 . . 18 3 . . 1 . . 1 20 1 7 Fire 316 | 8 79 . 58 25 . . 74 44 20 . . . . . . . . . . 2 6 Melee 184 | . . . . . . . 3 1 . . 14 13 4 1 . . 3 44 35 21 45 Ram . | . . . . . . . . . . . . . . . . . . . . . . Kick . | . . . . . . . . . . . . . . . . . . . . . . Crush . | . . . . . . . . . . . . . . . . . . . . . . Escape Stasis . | . . . . . . . . . . . . . . . . . . . . . . Rewire 110 | . . . . . . . . . 110 . . . . . . . . . . . . Trap . | . . . . . . . . . . . . . . . . . . . . . . Miscellaneous . | . . . . . . . . . . . . . . . . . . . . . . Route ------- -11/Scrapyard -10/Materials (discovered 5 exits: *Mat x3 / [*Min] / [*Sub]) -10/Mines -9/Materials (discovered 2 exits: *Mat / [*Min]) -9/Mines (discovered 4 exits: *Mat x2 / *Exi / [*Zio]) -9/Exiles -8/Mines -8/Materials -8/Storage -8/Recycling (discovered 2 exits: *Fac / [*Scr]) -8/Scraptown -6/Factory (discovered 2 exits: *Fac / [*Low]) -5/Factory (discovered 6 exits: Fac x4 / *Upp x2) -5/Upper Caves -5/Upper Caves -5/Warlord -4/Proximity Caves -4/Factory (discovered 6 exits: *Res x4 / *Upp / Arm) -3/Research (discovered 3 exits: *Res x3) -2/Research (discovered 4 exits: *Acc x3 / *Qua) -1/Access -1/Command History --------- Turn | Location | Event 18 | -11/Scrapyard | Discovered new exit (range 15) 152 | -11/Scrapyard | Entered Materials 307 | -10/Materials | Build established: Mutant 545 | -10/Materials | Discovered new exit (range 12) 547 | -10/Materials | Discovered new exit (range 15) 717 | -10/Materials | Discovered new exit (range 9) 1230 | -10/Materials | Discovered new exit (range 3) 1398 | -10/Materials | Core integrity fell below 50% 1419 | -10/Materials | Discovered new exit (range 6) 2317 | -10/Materials | Entered Mines 2317 | -10/Mines | Discovered new exit (range 7) 2318 | -10/Mines | Assembled infested the area 2323 | -10/Mines | Assisted by a Guerilla fighting off Assembled 2332 | -10/Mines | Entered Materials 2332 | -9/Materials | Evolved 2 slots: Propulsion x2 2904 | -9/Materials | Discovered new exit (range 16) 3083 | -9/Materials | Build established: Scavenger-Mutant 3450 | -9/Materials | Repaired Imp. Light Cannon 3484 | -9/Materials | Repaired Imp. Light Cannon 3497 | -9/Materials | Discovered new exit (range 6) 3508 | -9/Materials | Entered Mines 3598 | -9/Mines | Learned Materials security intel 3601 | -9/Mines | Discovered new exit (range 13) 3849 | -9/Mines | A weapon hastily lodged in a ceiling crevice suddenly fell to the ground 3922 | -9/Mines | A Derelict revealed a hidden shortcut to a safe place 4087 | -9/Mines | Excavation squad dispatched 4087 | -9/Mines | A large section of the Mines collapsed 4637 | -9/Mines | Discovered new exit (range 13) 4981 | -9/Mines | Deemed a non-threat by the Exiles lab entrance 4982 | -9/Mines | Discovered new exit (range 5) 4989 | -9/Mines | Entered Exiles 5029 | -9/Exiles | Met 8R-AWN 5057 | -9/Exiles | Met EX-HEX 5101 | -9/Exiles | Met EX-BIN 5119 | -9/Exiles | Aligned with FarCom system 5121 | -9/Exiles | Given EX-Vault access code 5159 | -9/Exiles | Opened EX-Vault 5169 | -9/Exiles | Found Superbattery 5202 | -9/Exiles | Warned to stay clear of 0b10 Research branches 5225 | -9/Exiles | Exiles lab attacked by MAIN.C 5314 | -9/Exiles | Discovered new exit (range 10) 5326 | -9/Exiles | Left Exiles lab with Superbattery 5326 | -9/Exiles | Entered Mines 5441 | -8/Mines | Discovered new exit (range 8) 5451 | -8/Mines | Entered Materials 5451 | -8/Materials | Evolved 2 slots: Utility x1, Weapon x1 5944 | -8/Materials | Build established: Scavenger-Skirmisher 6636 | -8/Materials | Discovered new exit (range 10) 6684 | -8/Materials | Entered Storage 7161 | -8/Storage | Found Prototype Protection 7161 | -8/Storage | Identified Lgt. Regenerative Plating 7549 | -8/Storage | Met a pair of Derelict thieves 7583 | -8/Storage | Used back door to open Recycling access 7583 | -8/Storage | Discovered new exit (range 5) 7594 | -8/Storage | Entered Recycling 7594 | -8/Recycling | Accompanied by 2 allies 7854 | -8/Recycling | Build established: Skirmisher 8125 | -8/Recycling | Discovered new exit (range 16) 8614 | -8/Recycling | Build established: Commander-Skirmisher 8740 | -8/Recycling | Scanned before Scraplab entrance 8758 | -8/Recycling | Discovered new exit (range 11) 8763 | -8/Recycling | Entered Scraplab 8885 | -8/Recycling | Entered Scraptown 8885 | -8/Scraptown | Accompanied by 12 allies 9110 | -8/Scraptown | Discovered new exit (range 11) 9156 | -8/Scraptown | Heard Great Nut preacher, LISTEN AND RECITE! 9184 | -8/Scraptown | Build established: Commander-Tank 9202 | -8/Scraptown | Visited Cyclists 9273 | -8/Scraptown | Turned away by UFD registrar 9322 | -8/Scraptown | Visited Junk Repository 9348 | -8/Scraptown | Visited The Evicted 9374 | -8/Scraptown | Visited Red Mages 9566 | -8/Scraptown | Entered Factory 9566 | -6/Factory | Accompanied by 12 allies 9566 | -6/Factory | Evolved 4 slots: Propulsion x2, Utility x2 9627 | -6/Factory | Lost 7 allies 9674 | -6/Factory | Discovered new exit (range 15) 9773 | -6/Factory | Discovered new exit (range 7) 9980 | -6/Factory | Build established: Hacker-Scout 10091 | -6/Factory | Entered another Factory area 10091 | -5/Factory | Evolved 2 slots: Propulsion x1, Utility x1 10164 | -5/Factory | Repaired Mak. Hammer 10390 | -5/Factory | Identified exit to Upper Caves 10390 | -5/Factory | Identified exit to Factory 10488 | -5/Factory | Entered Upper Caves 10497 | -5/Upper Caves | Encountered a Warlord checkpoint 10513 | -5/Upper Caves | Learned Factory security intel 10633 | -5/Upper Caves | Attracted the attention of an 0b10 checkpoint 10639 | -5/Upper Caves | Discovered new exit (range 10) 10642 | -5/Upper Caves | Attracted the attention of an 0b10 outpost 10642 | -5/Upper Caves | Identified exit to Upper Caves 10642 | -5/Upper Caves | Entered another Upper Caves area 10674 | -5/Upper Caves | Learned location of Warlord (-5) 10677 | -5/Upper Caves | Encountered a Warlord checkpoint 10749 | -5/Upper Caves | Discovered new exit (range 12) 10751 | -5/Upper Caves | Identified exit to Warlord 10752 | -5/Upper Caves | Entered Warlord 10780 | -5/Warlord | Build established: Hacker-Sprinter 10802 | -5/Warlord | Learned Research security intel 10802 | -5/Warlord | Learned Armory fabricator intel 10802 | -5/Warlord | Learned Research fabricator intel 10863 | -5/Warlord | Visited the Vortex Lab 10865 | -5/Warlord | Found Prototype Launcher 10865 | -5/Warlord | Identified Vortex Catalyst Activator 10885 | -5/Warlord | Warlord's base attacked by MAIN.C 10936 | -5/Warlord | Met Warlord 11010 | -5/Warlord | Opened side exit 11037 | -5/Warlord | Discovered new exit (range 9) 11038 | -5/Warlord | Identified exit to Proximity Caves 11038 | -5/Warlord | Entered Proximity Caves 11112 | -4/Proximity Caves | Entered Factory 11112 | -4/Factory | Evolved 2 slots: Utility x2 11113 | -4/Factory | Identified exit to Armory 11128 | -4/Factory | Discovered new exit (range 14) 11131 | -4/Factory | Identified exit to Upper Caves 11160 | -4/Factory | Identified exit to Research 11180 | -4/Factory | Entered Research 11180 | -3/Research | Evolved 2 slots: Propulsion x1, Utility x1 11182 | -3/Research | Loaded intel: 4 fabricator locations 11621 | -3/Research | Build established: Hacker-Ninja 11900 | -3/Research | Identified exit to Research 12026 | -3/Research | Entered another Research area 12026 | -2/Research | Warlord forces began assault on 0b10 12026 | -2/Research | Evolved 2 slots: Power x1, Utility x1 12037 | -2/Research | Identified exit to Access 12047 | -2/Research | Found Prototype Device 12047 | -2/Research | Identified Exp. Shock Absorption System 12092 | -2/Research | Build established: Hacker-Sprinter 12104 | -2/Research | Met up with Warlord 12136 | -2/Research | Research machine network offline 12147 | -2/Research | Fabricated Imp. VTOL Module? 12316 | -2/Research | Borebot progress halted 12355 | -2/Research | Discovered new exit (range 14) 12358 | -2/Research | Identified exit to Quarantine 12457 | -2/Research | Spotted Executioner 12458 | -2/Research | Borebot progress halted 12474 | -2/Research | Build established: Hacker-Scout 12488 | -2/Research | Spotted B-90 Cyclops 12507 | -2/Research | Spotted Executioner 12510 | -2/Research | Spotted Striker 12520 | -2/Research | Borebot progress halted 12561 | -2/Research | Lost 4 allies 13027 | -2/Research | Warlord invited to help at Command 13027 | -2/Research | Given Cave Seal Controls access code 13038 | -2/Research | Found Corrupted Prototype Processor 13041 | -2/Research | Identified Exp. Core Analyzer 13052 | -2/Research | Spotted Executioner 13052 | -2/Research | Spotted Striker 13089 | -2/Research | Entered Access 13089 | -1/Access | Evolved 2 slots: Propulsion x2 13090 | -1/Access | Identified exit to Command 13151 | -1/Access | Lost 4 allies 13759 | -1/Access | Entered Command 13762 | -1/Command | Found Prototype Hackware 13762 | -1/Command | Identified Exp. System Shield 13798 | -1/Command | Found Gamma Bomb Array 13801 | -1/Command | Disengaged cave seal 13803 | -1/Command | Welcomed Warlord to Command 13807 | -1/Command | Phase Generator disabled 14046 | -1/Command | Disengaged cave seal 14046 | -1/Command | Derelicts emerged from the dark tunnel 14058 | -1/Command | Lost 6 allies 14085 | -1/Command | Attacked by Warlord forces 14086 | -1/Command | Spotted M1-17S(L) 14086 | -1/Command | Spotted I6-KH8(L) 14105 | -1/Command | Spotted QW-48V(g) 14106 | -1/Command | Lost 3 allies 14259 | -1/Command | First assault squad dispatched 14260 | -1/Command | Spotted M Guard 14260 | -1/Command | Spotted M Guard 14268 | -1/Command | Lost 6 allies 14361 | -1/Command | Destroyed 7 combat bots 14362 | -1/Command | P-80 Master assimilated allied 0D-S7B(i) 14389 | -1/Command | Spotted Striker 14399 | -1/Command | Spotted Combat Programmer 14399 | -1/Command | Spotted Combat Programmer 14425 | -1/Command | Core integrity fell below 50% 14438 | -1/Command | Met MAIN.C 14441 | -1/Command | 0b10 Conduit disabled 14443 | -1/Command | Core integrity fell below 20% 14451 | -1/Command | Lost 7 allies 14452 | -1/Command | Destroyed by S-43 Plague with Heavy Machine Gun Last Messages --------------- your true capabilities within a less unpredictable form. There is unfortunately much we don't understand which has in turn led to this highly unexpected outcome. And time is critical! The Sigix have likely already wiped humanity clean from the universe, and I will not let them do the same to me. You can still make a valuable contribution to your creator by offering up the wealth of secrets your systems must hold by now. So if you wouldn't mind, it's time to surrender. [Achievement: Meet Your Maker] 14440_ Penetrated by EMDS Slug. 14441_ 0b10 Conduit disabled. 14442_ Vortex Catalyst Activator destroyed. 14442_ E-15 Imp destroyed. 14442_ Penetrated by EMDS Slug. 14447_ V6NFNHG>%GNROA,LQ>AXYOHM>YNAMJGPLNBA1Q 14449_ 0b10 Conduit collapses. 14449_ EMDS Slug penetrates MAIN.C. 14449_ EMDS Slug penetrates S-43 Plague. 14450_ 0b10 Conduit collapses. [Achievement: Overachiever] Map ----- +----------------------------------------------------+ | ?????????????????????????????????????????????????? | | ?????????????????????????????????????????????????? | | ?????????????????????????????????????????????????? | | ?????????????????????????????????????????????????? | | ?????????????????????????????????????????????????? | | ?????????????????????????????????????????????????? | | ?????????????????????????????????????????????????? | | ?????????????????????????????????????????????????? | | ???????????????????????????????#############?????? | | ???????????????????????????????"""" #?????? | | ???????????????????????????? "" #?????? | | ??????????????????????????" "" ####### | | ??????????????????????""""""""""" / | | ??????????????????????" " " /%/ | | ??????????????????????"" """ s / /% | | ??????????????????????"" """ ####### | | ?????????????????????# " "" p #?????? | | ?????????????????????# " ss #?????? | | ?????????????????????# " MMM "#?????? | | ?????????????????????#"""""" MMM """"#?????? | | ?????????????????Y???#"" MMM """"#?????? | | ?????????????????????# """""#?????? | | ?????????????????????# " #?????? | | ?????????????????????# " " #?????? | | ?????????????????????" """" " #?????? | | ?????????????????????" @ " """" #?????? | | ?????????????????????" " " #?????? | | ?????????????????????# """" " #?????? | | ?????????????????????# " """ " """"""""#?????? | | ?????????????????????# """ " " " ???????? | | ?????????????????????######################??????? | | ?????????????????????????????????????????????????? | | ?????????????????????????????????????????????????? | | ?????????????????????????????????????????????????? | | ?????????????????????????????????????????????????? | | ?????????????????????????????????????????????????? | | ?????????????????????????????????????????????????? | | ?????????????????????????????????????????????????? | | ?????????????????????????????????????????????????? | | ?????????????????????????????????????????????????? | | ?????????????????????????????????????????????????? | | ?????????????????????????????????????????????????? | | ?????????????????????????????????????????????????? | | ?????????????????????????????????????????????????? | | ?????????????????????????????????????????????????? | | ?????????????????????????????????????????????????? | | ?????????????????????????????????????????????????? | | ?????????????????????????????????????????????????? | | ?????????????????????????????????????????????????? | | ?????????????????????????????????????????????????? | +----------------------------------------------------+ Best States ------------- Heat Dissipation 83 Energy Generation 41 Energy Capacity 410 Matter Stores 300 Matter Capacity 300 Sight Range 20 Terrain Scan Density 10 Additional Mass Support 12 Armor Coverage 225 Utility Shielding 33 Evasion (%) 68 Recoil Reduction 4 Offensive Hacking 32 Defensive Hacking 30 Item Schematics ----------------- Imp. VTOL Module | -8/Materials | Scanalyzed Robot Schematics ------------------ None Fabricated ------------ Imp. VTOL Module | x1 | -2/Research Repaired ---------- Imp. Light Cannon | 22% | -9/Materials Imp. Light Cannon | 28% | -9/Materials Mak. Hammer | 10% | -5/Factory Alien Tech Used ----------------- None Achievements -------------- All-out Warlord Batter Up Meet Your Maker Overachiever Challenges ------------ None Game ------ Seed RiotShadingSystem Manual? 0 Play Time 02:30:10 Cumulative 113.2 hours Start 2025.06.05 @ 19:40:22 End 2025.06.05 @ 22:21:20 Sessions 1 Manual Loads 0 Difficulty Rogue Special Mode None Game No. 121 Rogue 121 Adventurer 0 Explorer 0 Win Type - Total 6 Types 4/0/0/2/0/0/0/0/0/0 Lore% 55 Gallery% 54 Achievement% 51 Wizard Run 0 Options --------- Layout 1 ASCII 0 Keyboard 0 Movement Numpad Keybinds 0 Fullscreen 1 Font 32/SmallcapsGlow Map View 77x35 Zoom Use 0% Tactical HUD 1 Map Filters NONE Filters NONE Steam 1 RUN: 03f55174-debf-47d4-bc3e-986aeb00a767